bitfinex/quotes_BTCUSD_20250830
["timestamp","ask_amount","ask_price","bid_price","bid_amount"]
[1756521035164,0.18517253,108030.0,108020.0,0.25518001]
[1756521035580,0.62033428,108030.0,108020.0,0.25210001]
[1756521036008,0.19442921,108030.0,108020.0,0.25210001]
[1756521036231,0.19442921,108030.0,108020.0,0.25214879]
[1756521036450,0.63359096,108030.0,108020.0,0.25214879]
[1756521036625,0.19542921,108030.0,108020.0,0.25210879]
[1756521036838,0.19442921,108030.0,108020.0,0.25210879]
[1756521037042,0.63359096,108030.0,108020.0,0.25210879]
[1756521037206,0.19842921,108030.0,108020.0,0.25210879]
[1756521037610,0.63359096,108030.0,108020.0,0.25210879]
[1756521040790,0.63359096,108030.0,108020.0,0.43725968]
[1756521040994,0.6242955,108030.0,108020.0,0.44233968]
[1756521042014,0.18913375,108030.0,108020.0,0.44233968]
[1756521042217,0.004,108030.0,108020.0,0.51353968]
[1756521042641,0.43616175,108030.0,108020.0,0.51353968]
[1756521042821,0.002,108030.0,108020.0,0.51353968]
[1756521043024,0.43616175,108030.0,108020.0,0.51353968]
[1756521043221,0.6212955,108030.0,108020.0,0.16422879]
[1756521043441,0.6212955,108030.0,108020.0,0.32330879]
[1756521043765,0.18613375,108030.0,108020.0,0.50845968]
[1756521043926,0.6212955,108030.0,108020.0,0.35245968]
[1756521044130,0.6212955,108030.0,108020.0,0.51149968]
[1756521044337,0.6212955,108030.0,108020.0,0.51349968]
[1756521045768,0.43616175,108030.0,108020.0,0.51349968]
[1756521045978,0.6212955,108030.0,108020.0,0.51349968]
[1756521046583,0.001,108030.0,108020.0,0.51349968]
[1756521048348,0.43616175,108030.0,108020.0,0.51349968]
[1756521049654,0.18613375,108030.0,108020.0,0.51349968]
[1756521049877,0.6212955,108030.0,108020.0,0.32834879]
[1756521051134,0.6212955,108030.0,108020.0,0.16422879]
[1756521051344,1.05645725,108030.0,108020.0,0.15908878]
[1756521051546,1.47455298,108030.0,108020.0,4.878e-05]
[1756521051746,1.50129163,108030.0,108020.0,4.878e-05]
[1756521051870,1.50129164,108030.0,108020.0,4.878e-05]
[1756521052311,1.49839389,108030.0,108020.0,4.878e-05]
[1756521052760,0.73389957,108030.0,108020.0,4.878e-05]
[1756521052966,0.57489957,108030.0,108020.0,4.878e-05]
[1756521053138,1.60322307,108030.0,108020.0,4.878e-05]
[1756521053543,1.44422307,108030.0,108020.0,4.878e-05]
[1756521053750,0.57389957,108030.0,108020.0,4.878e-05]
[1756521053990,1.44422307,108030.0,108020.0,4.878e-05]
[1756521054201,1.44822307,108030.0,108020.0,4.878e-05]
[1756521054334,1.44422307,108030.0,108020.0,4.878e-05]
[1756521054531,0.6511225,108030.0,108020.0,4.878e-05]
[1756521054736,0.6511225,108030.0,108020.0,0.00328878]
[1756521054969,0.21596075,108030.0,108020.0,4.878e-05]
[1756521055175,0.6511225,108030.0,108020.0,4.878e-05]
[1756521055418,0.6531225,108030.0,108020.0,4.878e-05]
[1756521055877,1.10722307,108030.0,108020.0,0.15904878]
[1756521056080,1.10722307,108030.0,108020.0,4.878e-05]
[1756521056284,0.23489957,108030.0,108020.0,4.878e-05]
[1756521056492,1.10522307,108030.0,108020.0,4.878e-05]
[1756521056695,1.10722307,108030.0,108020.0,4.878e-05]
[1756521058704,1.10722307,108030.0,108020.0,0.15904878]
[1756521058899,1.10722307,108030.0,108020.0,4.878e-05]
[1756521060422,1.44722307,108030.0,108020.0,4.878e-05]
[1756521062681,6.47655298,108030.0,108020.0,4.878e-05]
[1756521062910,0.20610685,108010.0,108000.0,0.1433143]
[1756521063121,0.20610685,108010.0,108000.0,0.07216309]
[1756521063122,1.07643035,108010.0,108000.0,0.07216309]
[1756521063336,0.6412686,108010.0,108000.0,0.07216309]
[1756521063785,0.6691006,108010.0,108000.0,0.07216309]
[1756521063992,0.34416543,108020.0,108000.0,0.07754309]
[1756521064226,0.18716803,108010.0,108000.0,0.07430309]
[1756521064426,0.62232978,108010.0,108000.0,0.07430309]
[1756521064837,0.18716803,108010.0,108000.0,0.35570828]
[1756521065078,0.18716803,108010.0,108000.0,0.1705231]
[1756521065725,0.18916803,108010.0,108000.0,0.1705231]
[1756521065923,0.18916803,108010.0,108000.0,0.0984088]
[1756521066291,0.18716803,108010.0,108000.0,0.0984088]
[1756521066489,0.62032978,108010.0,108000.0,0.0984088]
[1756521067929,0.62032978,108010.0,108000.0,0.0994088]
[1756521068311,0.62032978,108010.0,108000.0,0.2584088]
[1756521074470,0.62032978,108010.0,108000.0,0.44359398]
[1756521075288,0.62032978,108010.0,108000.0,0.2584088]
[1756521077300,0.62032978,108010.0,108000.0,0.0994088]
[1756521077502,0.62032978,108010.0,108000.0,0.2583688]
[1756521077941,0.62032978,108010.0,108000.0,0.0972688]
[1756521078141,0.18516803,108010.0,108000.0,0.2529888]
[1756521078385,0.62032978,108010.0,108000.0,0.2583688]
[1756521079638,0.18516803,108010.0,108000.0,0.2583688]
[1756521079848,0.62032978,108010.0,108000.0,0.2583688]
[1756521080475,0.62032978,108010.0,108000.0,0.0994088]
[1756521080676,0.62032978,108010.0,108000.0,0.2583688]
[1756521082174,0.62032978,108010.0,108000.0,0.16000879]
[1756521082706,0.18516803,108010.0,108000.0,0.16000879]
[1756521083004,0.18516803,108010.0,108000.0,0.35036397]
[1756521083423,0.18516803,108010.0,108000.0,0.16517879]
[1756521083626,0.62032978,108010.0,108000.0,0.16517879]
[1756521083824,0.62032978,108010.0,108000.0,0.16417879]
[1756521084024,0.62132978,108010.0,108000.0,0.16417879]
[1756521084443,0.62232978,108010.0,108000.0,0.16417879]
[1756521084822,0.62032978,108010.0,108000.0,0.16417879]
[1756521085052,0.62132978,108010.0,108000.0,0.16417879]
[1756521087197,0.62132978,108010.0,108000.0,0.2571588]
[1756521089188,0.18616803,108010.0,108000.0,0.2571588]
[1756521089386,0.62132978,108010.0,108000.0,0.2571588]
[1756521090430,0.62132978,108010.0,108000.0,0.3283588]
[1756521091563,0.001,108010.0,108000.0,0.94849592]
[1756521091770,0.001,108010.0,108000.0,1.03359586]
[1756521091978,0.001,108010.0,108000.0,0.59843411]
[1756521093225,0.18516543,108020.0,108000.0,0.59843411]
[1756521093436,0.62032718,108020.0,108010.0,0.09601001]
[1756521093632,0.18516543,108020.0,108010.0,0.09815001]
[1756521096531,0.18616543,108020.0,108010.0,0.09815001]
[1756521097401,0.62132718,108020.0,108010.0,0.09815001]
[1756521097808,0.001,108020.0,108010.0,0.78740867]
[1756521098035,0.18615089,108020.0,108010.0,0.16476429]
[1756521098258,0.62131264,108020.0,108010.0,0.32368429]
[1756521098747,0.62131264,108020.0,108010.0,0.50885232]
[1756521099433,0.62131264,108020.0,108010.0,0.44223804]
[1756521099883,0.62131264,108020.0,108000.0,0.18715394]
[1756521100092,0.62032978,108010.0,108000.0,0.25230995]
[1756521100302,0.62032978,108010.0,108000.0,0.34695567]
[1756521100752,0.62032978,108010.0,108000.0,0.53214085]
[1756521101598,0.62032978,108010.0,108000.0,0.53414085]
[1756521101975,0.62032978,108010.0,108000.0,0.37502085]
[1756521102175,0.62032978,108010.0,108000.0,0.53414085]
[1756521103257,0.18516803,108010.0,108000.0,0.53414085]
[1756521103461,0.62032978,108010.0,108000.0,0.53414085]
[1756521104533,0.62032978,108010.0,108000.0,0.32510001]
[1756521105295,0.62032978,108010.0,108000.0,0.32813001]
[1756521105908,0.62132978,108010.0,108000.0,0.32813001]
[1756521106786,0.18616803,108010.0,108000.0,0.32613001]
[1756521106969,0.18616803,108010.0,108000.0,0.51345519]
[1756521106970,0.62132978,108010.0,108000.0,0.51345519]
[1756521108035,0.62132978,108010.0,108000.0,0.32827001]
[1756521108461,0.18616803,108010.0,108000.0,0.51345519]
[1756521109302,0.62032978,108010.0,108000.0,0.51345519]
[1756521109728,0.18516803,108010.0,108000.0,0.51345519]
[1756521110973,0.18516803,108010.0,108000.0,0.51545519]
[1756521111137,0.18515089,108020.0,108010.0,0.18516803]
[1756521111482,0.18515089,108020.0,108010.0,0.28344804]
[1756521112108,0.19439292,108030.0,108020.0,0.18515089]
[1756521112279,0.64735939,108040.0,108020.0,0.4423509]
[1756521112518,0.64735939,108040.0,108030.0,0.00314]
[1756521114576,0.0004,108040.0,108030.0,1.11857551]
[1756521114861,0.0004,108040.0,108030.0,2.11493726]
[1756521115016,0.0014,108040.0,108030.0,1.83524617]
[1756521115210,0.0004,108040.0,108030.0,1.83524617]
[1756521115410,0.0004,108040.0,108030.0,1.91084751]
[1756521115609,0.0034,108040.0,108030.0,1.91084751]
[1756521115866,0.0024,108040.0,108030.0,1.92939751]
[1756521116041,0.0024,108040.0,108030.0,1.99416617]
[1756521116250,0.0004,108040.0,108030.0,2.41547395]
[1756521116452,0.0004,108040.0,108030.0,1.34615045]
[1756521116659,0.0004,108040.0,108030.0,1.7813122]
[1756521117646,0.0004,108040.0,108030.0,2.25335171]
[1756521118652,0.0004,108040.0,108030.0,2.09443171]
[1756521118851,0.0004,108040.0,108030.0,1.81826996]
[1756521119052,0.0004,108040.0,108030.0,2.25343171]
[1756521120149,0.0004,108040.0,108030.0,2.25335171]
[1756521121930,0.0004,108040.0,108030.0,2.09443171]
[1756521122123,0.0004,108040.0,108030.0,2.25335171]
[1756521122469,0.0004,108040.0,108030.0,2.21643395]
[1756521122879,0.0004,108040.0,108030.0,1.18723045]
[1756521123095,0.0004,108040.0,108030.0,1.71508751]
[1756521123505,0.0004,108040.0,108030.0,1.75685931]
[1756521124740,0.0004,108040.0,108030.0,1.60681931]
[1756521126407,0.0004,108040.0,108030.0,1.44769931]
[1756521126598,0.0004,108040.0,108030.0,1.40665931]
[1756521127702,0.0004,108040.0,108030.0,0.81253756]
[1756521127902,0.0004,108040.0,108030.0,1.40665931]
[1756521129300,0.0004,108040.0,108030.0,0.81253756]
[1756521129590,0.0004,108040.0,108030.0,0.97141756]
[1756521130610,0.0004,108040.0,108030.0,1.40657931]
[1756521131570,0.0004,108040.0,108030.0,0.97141756]
[1756521131769,0.0004,108040.0,108030.0,1.40657931]
[1756521133008,0.0004,108040.0,108030.0,1.36480751]
[1756521135303,0.0004,108040.0,108030.0,1.79996926]
[1756521135458,0.0004,108040.0,108030.0,1.99996926]
[1756521138075,0.0004,108040.0,108030.0,2.0407025]
[1756521139285,0.0004,108040.0,108030.0,2.10716719]
[1756521139702,0.0004,108040.0,108030.0,1.23684369]
[1756521139904,0.0004,108040.0,108030.0,2.10716719]
[1756521140853,0.22831399,108070.0,108050.0,0.18443754]
[1756521141052,0.22831399,108070.0,108060.0,0.15884]
[1756521142020,0.23079111,108070.0,108060.0,0.15884]
[1756521142203,0.23179111,108070.0,108060.0,0.15884]
[1756521142409,0.00437321,108070.0,108060.0,0.43690237]
[1756521142633,0.00147712,108070.0,108060.0,0.44221237]
[1756521142831,0.00347712,108070.0,108060.0,0.44221237]
[1756521143901,0.00347712,108070.0,108060.0,0.44013237]
[1756521144108,0.00247712,108070.0,108060.0,0.44013237]
[1756521144308,0.00047712,108070.0,108060.0,0.44013237]
[1756521144508,0.00337305,108070.0,108060.0,0.44013237]
[1756521144768,0.00537304,108070.0,108060.0,0.44013237]
[1756521144969,0.00537306,108070.0,108060.0,0.44013237]
[1756521145233,0.00337306,108070.0,108060.0,0.44013237]
[1756521145469,0.00147712,108070.0,108060.0,0.44013237]
[1756521147073,0.00147712,108070.0,108060.0,0.44221237]
[1756521147384,0.00147712,108070.0,108060.0,0.48402261]
[1756521148900,0.18654235,108070.0,108060.0,0.48402261]
[1756521149119,0.18654235,108070.0,108060.0,0.48194261]
[1756521150017,0.18654235,108070.0,108060.0,0.48402261]
[1756521157354,0.00147712,108070.0,108060.0,1.62646041]
[1756521157538,0.00147712,108070.0,108060.0,1.71141076]
[1756521157739,0.00147712,108070.0,108060.0,1.73921776]
[1756521157924,0.00147712,108070.0,108060.0,0.91269426]
[1756521158101,0.00147712,108070.0,108060.0,1.78301776]
[1756521158304,0.00047712,108070.0,108060.0,2.12301776]
[1756521158768,0.00147712,108070.0,108060.0,2.12301776]
[1756521159039,0.62777675,108100.0,108080.0,0.18504364]
[1756521159233,0.63067222,108100.0,108090.0,0.1588]
[1756521159739,0.66856713,108100.0,108090.0,0.1588]
[1756521160157,0.66956713,108100.0,108090.0,0.1588]
[1756521160358,0.66856713,108100.0,108090.0,0.1588]
[1756521160783,0.66956713,108100.0,108090.0,0.1588]
[1756521161165,0.67156713,108100.0,108090.0,0.1588]
[1756521161576,0.23640538,108100.0,108090.0,0.1588]
[1756521161817,0.23350991,108100.0,108090.0,0.1588]
[1756521161994,0.23640537,108100.0,108090.0,0.1588]
[1756521163322,0.003,108100.0,108090.0,0.94844275]
[1756521163776,0.003,108100.0,108090.0,0.97624575]
[1756521164130,0.001,108100.0,108090.0,0.541084]
[1756521164543,0.001,108100.0,108090.0,0.382284]
[1756521164787,0.18601387,108100.0,108090.0,0.19517301]
[1756521164922,0.18601387,108100.0,108090.0,0.35393301]
[1756521165118,0.18501387,108100.0,108090.0,0.541044]
[1756521165381,0.62250863,108110.0,108090.0,0.541044]
[1756521166189,0.62017562,108100.0,108090.0,0.19394301]
[1756521166384,0.62017562,108100.0,108090.0,0.32390001]
[1756521166919,0.62017562,108100.0,108090.0,0.32290001]
[1756521167471,0.62017562,108100.0,108090.0,0.16414001]
[1756521167673,0.62017562,108100.0,108090.0,0.32290001]
[1756521170244,0.62017562,108100.0,108090.0,0.32593001]
[1756521170683,0.18501387,108100.0,108090.0,0.32798001]
[1756521170895,0.18734688,108110.0,108100.0,0.18501387]
[1756521171123,0.18734688,108110.0,108100.0,0.19009387]
[1756521171638,0.62250863,108110.0,108100.0,0.19009387]
[1756521171814,0.62250863,108110.0,108100.0,0.00508]
[1756521171965,0.62350863,108110.0,108100.0,0.00508]
[1756521172169,0.18734688,108110.0,108100.0,0.00512877]
[1756521172400,0.18734688,108110.0,108100.0,0.19014264]
[1756521172775,0.18834688,108110.0,108100.0,0.19014264]
[1756521173240,0.18734688,108110.0,108100.0,0.19014264]
[1756521175535,0.18734688,108110.0,108100.0,0.28312265]
[1756521176575,0.00234801,108110.0,108100.0,0.28312265]
[1756521177370,0.18734477,108110.0,108100.0,0.28312265]
[1756521178931,0.62250652,108110.0,108100.0,0.09810878]
[1756521179143,0.62250652,108110.0,108100.0,0.16032877]
[1756521179764,0.62250652,108110.0,108100.0,0.16024877]
[1756521180409,0.62250652,108110.0,108100.0,4.877e-05]
[1756521180618,0.62250652,108110.0,108100.0,0.16020877]
[1756521180822,0.62250652,108110.0,108100.0,0.16012877]
[1756521181651,0.62250652,108110.0,108100.0,4.877e-05]
[1756521181818,0.62350652,108110.0,108100.0,0.16012877]
[1756521182230,0.62350652,108110.0,108100.0,4.877e-05]
[1756521182432,0.62350652,108110.0,108100.0,0.16311877]
[1756521182634,0.62450652,108110.0,108100.0,0.16311877]
[1756521182866,0.62450652,108110.0,108100.0,0.16008877]
[1756521183869,0.99904414,108110.0,108100.0,4.877e-05]
[1756521184119,1.00193936,108110.0,108100.0,0.16004877]
[1756521184944,1.02287818,108110.0,108100.0,0.16044877]
[1756521185118,1.02287842,108110.0,108100.0,0.16044877]
[1756521187692,1.02287842,108110.0,108100.0,0.16028877]
[1756521187809,1.02287842,108110.0,108100.0,4.877e-05]
[1756521188013,1.02287842,108110.0,108100.0,0.16024877]
[1756521188607,1.02287842,108110.0,108100.0,4.877e-05]
[1756521188828,1.02287842,108110.0,108100.0,0.16024877]
[1756521190704,1.02287842,108110.0,108100.0,4.877e-05]
[1756521192807,0.58771667,108110.0,108100.0,4.877e-05]
[1756521193143,1.02287842,108110.0,108100.0,4.877e-05]
[1756521193259,1.02187842,108110.0,108100.0,4.877e-05]
[1756521193664,0.96640198,108110.0,108100.0,0.00512877]
[1756521194085,0.62350652,108110.0,108100.0,0.00512877]
[1756521194491,0.62450652,108110.0,108100.0,0.00512877]
[1756521195184,0.62350652,108110.0,108100.0,0.16500877]
[1756521195405,0.62450652,108110.0,108100.0,0.16500877]
[1756521195660,0.62450652,108110.0,108100.0,0.00512877]
[1756521195884,0.62450652,108110.0,108100.0,0.16500877]
[1756521196096,0.62450652,108110.0,108100.0,0.16295877]
[1756521198518,0.18934477,108110.0,108100.0,0.16500877]
[1756521198742,0.62450652,108110.0,108100.0,0.16500877]
[1756521198996,0.62450652,108110.0,108100.0,0.16295877]
[1756521199201,0.62450652,108110.0,108100.0,0.16503877]
[1756521200919,0.18934477,108110.0,108100.0,0.16503877]
[1756521201192,0.62450652,108110.0,108100.0,0.16503877]
[1756521202211,0.43716175,108110.0,108100.0,0.16503877]
[1756521202462,0.62215851,108110.0,108100.0,0.16503877]
[1756521203961,0.18699676,108110.0,108100.0,0.16503877]
[1756521204162,0.62215851,108110.0,108100.0,0.16503877]
[1756521204361,0.18699676,108110.0,108100.0,0.16503877]
[1756521204713,0.18699676,108110.0,108100.0,0.35005264]
[1756521204884,0.18599676,108110.0,108100.0,0.35005264]
[1756521205116,0.18499676,108110.0,108100.0,0.35005264]
[1756521205364,0.82686147,108120.0,108100.0,0.8781944]
[1756521205365,0.23225972,108120.0,108100.0,0.8781944]
[1756521205573,0.23225972,108120.0,108100.0,0.44000265]
[1756521205758,0.66742147,108120.0,108110.0,0.00304]
[1756521205992,0.66742147,108120.0,108110.0,0.00512]
[1756521206930,0.23325972,108120.0,108110.0,0.19011676]
[1756521207439,0.47519059,108120.0,108110.0,0.19011676]
[1756521207877,0.22500849,108120.0,108110.0,0.19011676]
[1756521208134,0.22400849,108120.0,108110.0,0.19011676]
[1756521208494,0.22500849,108120.0,108110.0,0.19011676]
[1756521216957,0.22500849,108120.0,108100.0,0.57660697]
[1756521216958,0.18499676,108110.0,108100.0,0.1626388]
[1756521217184,0.62015851,108110.0,108100.0,0.44212265]
[1756521217383,0.18499676,108110.0,108100.0,0.44212265]
[1756521217801,0.62015851,108110.0,108100.0,0.00308877]
[1756521218001,0.62015851,108110.0,108100.0,0.15940877]
[1756521218211,0.62015851,108110.0,108100.0,4.877e-05]
[1756521218415,0.18499676,108110.0,108100.0,0.15940877]
[1756521218613,0.62015851,108110.0,108100.0,4.877e-05]
[1756521218821,0.62015851,108110.0,108100.0,0.15936877]
[1756521222648,0.62015851,108110.0,108100.0,0.15941477]
[1756521224157,0.62015851,108110.0,108100.0,9.477e-05]
[1756521224557,0.62015851,108110.0,108100.0,0.15917477]
[1756521226624,0.62015851,108110.0,108100.0,9.477e-05]
[1756521226824,0.62015851,108110.0,108100.0,0.15905477]
[1756521229296,0.62015851,108110.0,108100.0,9.477e-05]
[1756521229553,0.62015851,108110.0,108100.0,0.15897477]
[1756521230377,0.18499676,108110.0,108100.0,0.15897477]
[1756521230602,0.62015851,108110.0,108100.0,9.477e-05]
[1756521230816,0.62015851,108110.0,108100.0,0.15897477]
[1756521232013,0.62015851,108110.0,108100.0,0.16221477]
[1756521232998,0.62015851,108110.0,108100.0,0.15897477]
[1756521233241,0.18499676,108110.0,108100.0,0.16221477]
[1756521233457,0.62015851,108110.0,108100.0,0.16221477]
[1756521234939,0.62015851,108110.0,108100.0,0.16424477]
[1756521240408,0.62015851,108110.0,108100.0,9.477e-05]
[1756521240613,0.65469613,108110.0,108100.0,9.477e-05]
[1756521241759,0.65669613,108110.0,108100.0,9.477e-05]
[1756521242373,0.81557613,108110.0,108100.0,9.477e-05]
[1756521242966,0.81657613,108110.0,108100.0,9.477e-05]
[1756521243382,0.81557613,108110.0,108100.0,9.477e-05]
[1756521243824,0.81757613,108110.0,108100.0,9.477e-05]
[1756521244539,0.81757613,108110.0,108100.0,0.00333477]
[1756521245946,0.84538213,108110.0,108100.0,0.00333477]
[1756521246160,0.84538213,108110.0,108100.0,9.477e-05]
[1756521247368,1.27685388,108110.0,108100.0,9.477e-05]
[1756521249083,1.6377927,108110.0,108100.0,9.477e-05]
[1756521249271,6.64068824,108110.0,108100.0,9.477e-05]
[1756521250104,7.19112714,108110.0,108100.0,9.477e-05]
[1756521251401,6.75809159,108110.0,108100.0,9.477e-05]
[1756521253673,6.94310159,108110.0,108100.0,9.477e-05]
[1756521254082,6.94310195,108110.0,108100.0,9.477e-05]
[1756521254295,7.39260195,108110.0,108100.0,9.477e-05]
[1756521254497,7.39060195,108110.0,108100.0,9.477e-05]
[1756521254896,7.40992146,108110.0,108100.0,9.477e-05]
[1756521255089,7.41292146,108110.0,108100.0,9.477e-05]
[1756521255306,7.39560195,108110.0,108100.0,9.477e-05]
[1756521255522,7.39260195,108110.0,108100.0,9.477e-05]
[1756521255879,7.39560195,108110.0,108100.0,9.477e-05]
[1756521257065,7.25403481,108110.0,108100.0,9.477e-05]
[1756521257320,7.39556195,108110.0,108100.0,9.477e-05]
[1756521257744,7.39556202,108110.0,108100.0,9.477e-05]
[1756521259525,7.23672202,108110.0,108100.0,9.477e-05]
[1756521259739,6.93796253,108110.0,108100.0,0.00523477]
[1756521260176,6.93796253,108110.0,108100.0,0.00310477]
[1756521261021,6.90342491,108110.0,108100.0,0.00310477]
[1756521262296,6.90342491,108110.0,108100.0,0.00281802]
[1756521262297,6.90372491,108110.0,108100.0,0.00281802]
[1756521262925,0.18503099,108090.0,108080.0,0.0721143]
[1756521263160,0.77732834,108090.0,108080.0,0.07429307]
[1756521263712,0.80513934,108090.0,108080.0,0.07429307]
[1756521264230,0.80513934,108090.0,108080.0,0.07730307]
[1756521264770,0.80613934,108090.0,108080.0,0.07730307]
[1756521265208,1.27485995,108090.0,108080.0,0.00518877]
[1756521265427,6.63609877,108090.0,108080.0,4.877e-05]
[1756521265636,6.82110877,108090.0,108080.0,4.877e-05]
[1756521265986,6.82010877,108090.0,108080.0,4.877e-05]
[1756521266405,6.82610877,108090.0,108080.0,4.877e-05]
[1756521266667,6.84725091,108090.0,108080.0,4.877e-05]
[1756521267089,6.85025091,108090.0,108080.0,4.877e-05]
[1756521267289,6.85314714,108090.0,108080.0,4.877e-05]
[1756521267670,6.94612715,108090.0,108080.0,4.877e-05]
[1756521267879,6.94312715,108090.0,108080.0,4.877e-05]
[1756521268266,6.94223092,108090.0,108080.0,4.877e-05]
[1756521268481,6.94512724,108090.0,108080.0,4.877e-05]
[1756521268685,6.94012724,108090.0,108080.0,4.877e-05]
[1756521268888,6.94212724,108090.0,108080.0,4.877e-05]
[1756521269092,7.39462724,108090.0,108080.0,4.877e-05]
[1756521269715,7.41211878,108090.0,108080.0,4.877e-05]
[1756521270345,7.41192878,108090.0,108080.0,4.877e-05]
[1756521271465,7.41211878,108090.0,108080.0,4.877e-05]
[1756521271850,7.41192878,108090.0,108080.0,4.877e-05]
[1756521275018,6.96242878,108090.0,108080.0,4.877e-05]
[1756521278783,6.94223092,108090.0,108080.0,4.877e-05]
[1756521278956,6.96243235,108090.0,108080.0,4.877e-05]
[1756521279395,6.96243668,108090.0,108080.0,4.877e-05]
[1756521279576,6.96243752,108090.0,108080.0,4.877e-05]
[1756521283296,6.96239752,108090.0,108080.0,4.877e-05]
[1756521283936,0.52506523,108070.0,108060.0,0.07099924]
[1756521284118,1.11732258,108070.0,108060.0,0.071048]
[1756521284329,1.15258584,108070.0,108060.0,0.073178]
[1756521284732,1.18040284,108070.0,108060.0,0.073178]
[1756521285135,1.18140284,108070.0,108060.0,0.073178]
[1756521285980,1.18140284,108070.0,108060.0,0.076188]
[1756521287220,1.18140284,108070.0,108060.0,0.07606854]
[1756521287433,1.61522849,108070.0,108060.0,0.07606854]
[1756521288445,1.61522849,108070.0,108060.0,0.07220896]
[1756521289238,1.61522849,108070.0,108060.0,0.0691502]
[1756521291630,0.58914549,108070.0,108060.0,0.0691502]
[1756521291838,1.61518849,108070.0,108060.0,0.0691502]
[1756521292703,0.24914549,108070.0,108060.0,0.5027917]
[1756521292915,0.61970673,108070.0,108060.0,0.0691502]
[1756521293669,0.61870673,108070.0,108060.0,0.0691502]
[1756521294091,0.61970673,108070.0,108060.0,0.0691502]
[1756521294503,0.61870673,108070.0,108060.0,0.0691502]
[1756521295075,0.61870673,108070.0,108060.0,0.0701502]
[1756521295508,0.61855823,108070.0,108060.0,0.0701502]
[1756521296523,0.18506523,108070.0,108060.0,0.0701502]
[1756521300946,0.18506523,108070.0,108060.0,0.06656937]
[1756521301138,0.18506523,108070.0,108060.0,0.00618876]
[1756521301790,0.18506523,108070.0,108060.0,1e-08]
[1756521303216,0.18506523,108070.0,108060.0,0.71155538]
[1756521303431,0.19033523,108070.0,108060.0,0.09298002]
[1756521303650,0.19033523,108070.0,108060.0,0.25166002]
[1756521303886,0.19033523,108070.0,108060.0,0.15868001]
[1756521304106,0.62382823,108070.0,108060.0,0.15868001]
[1756521304594,0.62482823,108070.0,108060.0,0.15868001]
[1756521304783,0.18508236,108060.0,108050.0,0.09695761]
[1756521305041,0.18508236,108060.0,108050.0,0.32124074]
[1756521305266,0.18508236,108060.0,108050.0,0.32326074]
[1756521307031,0.19771727,108060.0,108050.0,0.32326074]
[1756521307239,0.20084727,108060.0,108050.0,0.32326074]
[1756521307646,0.20298727,108060.0,108050.0,0.22826073]
[1756521307853,0.20298727,108060.0,108050.0,0.23028073]
[1756521308060,0.63648027,108060.0,108050.0,0.15911712]
[1756521308677,0.20298727,108060.0,108050.0,0.15911712]
[1756521309555,0.20398727,108060.0,108050.0,0.15911712]
[1756521309779,0.19871727,108060.0,108050.0,0.34855035]
[1756521309958,0.19871727,108060.0,108050.0,0.87534962]
[1756521310163,0.01363491,108060.0,108050.0,0.87534962]
[1756521310727,0.01263491,108060.0,108050.0,0.87534962]
[1756521311144,0.001,108060.0,108050.0,0.44185662]
[1756521311323,0.001,108060.0,108050.0,0.87534962]
[1756521312364,0.12554099,108070.0,108050.0,0.94650962]
[1756521312566,0.18722236,108060.0,108050.0,0.16663713]
[1756521312746,0.19035236,108060.0,108050.0,0.32523713]
[1756521312937,0.19035236,108060.0,108050.0,0.32623713]
[1756521313434,0.18722236,108060.0,108050.0,0.32623713]
[1756521313827,0.18722236,108060.0,108050.0,0.51133662]
[1756521313828,0.19035236,108060.0,108050.0,0.51133662]
[1756521314234,0.20302047,108060.0,108050.0,0.51133662]
[1756521314649,0.18508236,108060.0,108050.0,0.51457662]
[1756521315927,0.19758795,108060.0,108050.0,0.51457662]
[1756521317192,0.19758795,108060.0,108050.0,0.44341662]
[1756521321377,0.63633095,108060.0,108050.0,0.09445713]
[1756521321588,0.63633095,108060.0,108050.0,0.15999712]
[1756521321833,0.63318095,108060.0,108050.0,0.16211712]
[1756521322032,0.63318095,108060.0,108050.0,0.16509712]
[1756521322466,0.63318095,108060.0,108050.0,0.00657712]
[1756521322676,0.63318095,108060.0,108050.0,0.16509712]
[1756521323401,0.63633095,108060.0,108050.0,0.15999712]
[1756521331462,0.20283795,108060.0,108050.0,0.15999712]
[1756521331676,0.19968795,108060.0,108050.0,0.35019661]
[1756521334506,0.19968795,108060.0,108050.0,0.16509712]
[1756521335132,0.19968795,108060.0,108050.0,0.00657712]
[1756521335347,0.19968795,108060.0,108050.0,0.16203712]
[1756521337012,0.19968795,108060.0,108050.0,0.16501712]
[1756521339450,0.63327772,108060.0,108050.0,0.16501712]
[1756521340572,0.01250559,108060.0,108050.0,0.87900013]
[1756521340774,0.01250559,108060.0,108050.0,0.87668639]
[1756521340979,0.51949953,108070.0,108050.0,0.44309662]
[1756521341111,0.51949953,108070.0,108050.0,0.87370639]
[1756521341316,0.08590976,108070.0,108060.0,0.00298]
[1756521341511,0.08590976,108070.0,108060.0,0.0051]
[1756521341927,0.0987271,108070.0,108060.0,0.0051]
[1756521342614,0.0997271,108070.0,108060.0,0.0051]
[1756521343172,0.0987271,108070.0,108060.0,0.0051]
[1756521343386,0.0997271,108070.0,108060.0,0.0051]
[1756521346310,0.0987271,108070.0,108060.0,0.0051]
[1756521346552,0.0987271,108070.0,108060.0,0.0061]
[1756521348923,0.0887271,108070.0,108060.0,0.0061]
[1756521350241,0.0907971,108070.0,108060.0,0.0061]
[1756521350839,0.0939771,108070.0,108060.0,0.001]
[1756521351056,0.0939771,108070.0,108060.0,0.15932]
[1756521355819,0.0907971,108070.0,108060.0,0.34643236]
[1756521356049,0.0907971,108070.0,108060.0,0.34938236]
[1756521357137,0.19431513,108080.0,108070.0,0.18506523]
[1756521357360,0.19431513,108080.0,108070.0,0.00203]
[1756521357572,0.19638513,108080.0,108070.0,0.00498]
[1756521357983,0.19638513,108080.0,108070.0,0.00203]
[1756521357984,0.20915843,108080.0,108070.0,0.00203]
[1756521358649,0.18506523,108070.0,108060.0,0.71452022]
[1756521358852,0.18506523,108070.0,108060.0,0.87483022]
[1756521359056,0.21126843,108080.0,108060.0,0.87483022]
[1756521359722,0.21026843,108080.0,108060.0,0.87483022]
[1756521360100,0.21026843,108080.0,108060.0,0.44132237]
[1756521360281,0.21026843,108080.0,108060.0,0.44232237]
[1756521360489,0.21026843,108080.0,108060.0,0.44132237]
[1756521360961,0.21026843,108080.0,108060.0,0.87483022]
[1756521361825,0.21026843,108080.0,108060.0,0.44132237]
[1756521362034,0.18506523,108070.0,108060.0,0.44132237]
[1756521362238,0.18506523,108070.0,108060.0,0.87483022]
[1756521362464,0.20708843,108080.0,108060.0,0.87483022]
[1756521363092,0.20708843,108080.0,108060.0,0.87583022]
[1756521363676,0.20708843,108080.0,108060.0,0.87483022]
[1756521366229,0.20708843,108080.0,108060.0,0.90264222]
[1756521367151,0.20708843,108080.0,108070.0,0.15824]
[1756521367395,0.20915843,108080.0,108070.0,0.15824]
[1756521367915,0.20915843,108080.0,108070.0,0.16027]
[1756521369454,0.64255969,108080.0,108070.0,0.16027]
[1756521370086,0.0127733,108080.0,108070.0,0.87697981]
[1756521370249,0.0127733,108080.0,108070.0,0.8746665]
[1756521370453,0.82879253,108090.0,108070.0,0.8746665]
[1756521370655,0.37929253,108090.0,108070.0,0.8746665]